fUSD/lending_fUSD_20251026
["ID","MTS","AMOUNT","RATE_DAILY","PERIOD"]
[392454211,1761502243239,-151.0,0.0003587,31]
[392454213,1761502243248,-151.0,0.0003587,31]
[392454214,1761502243258,-151.0,0.0003587,31]
[392454216,1761502243267,-151.0,0.0003587,31]
[392454218,1761502243276,-151.0,0.0003587,31]
[392454219,1761502243284,-151.0,0.0003587,31]
[392454220,1761502243294,-151.0,0.0003587,31]
[392454221,1761502243303,-500.0,0.00035873,5]
[392454222,1761502243312,-500.76182007,0.00035873,5]
[392454223,1761502243321,-500.0,0.00035873,5]
[392454224,1761502243331,-500.0,0.00035873,5]
[392454225,1761502243341,-160.29284959,0.00035873,2]
[392454226,1761502243351,-159.27784719,0.00035873,2]
[392454227,1761502243360,-299.43813251,0.00035873,3]
[392454228,1761502243368,-160.32262345,0.00035873,2]
[392454229,1761502243378,-586.33,0.00035879,9]
[392454230,1761502243388,-594.95444689,0.00035879,9]
[392454231,1761502243397,-500.0,0.00035879,2]
[392454232,1761502243407,-151.0,0.00035879,31]
[392454233,1761502243416,-151.0,0.00035879,31]
[392454234,1761502243425,-151.0,0.00035879,31]
[392454235,1761502243434,-151.0,0.00035879,31]
[392454236,1761502243444,-290.147261,0.00035879,31]
[392454237,1761502243457,-151.0,0.00035879,31]
[392454238,1761502243468,-203.908452,0.00035879,31]
[392454239,1761502243478,-151.0,0.00035879,31]
[392454240,1761502243487,-151.0,0.00035879,31]
[392454241,1761502243497,-151.0,0.00035879,31]
[392454242,1761502243506,-151.0,0.00035879,31]
[392454243,1761502243516,-235.46155,0.00035879,31]
[392454244,1761502243528,-151.0,0.00035879,31]
[392454245,1761502243540,-151.0,0.00035879,31]
[392454246,1761502243549,-101036.308936,0.0003588,3]
[392454247,1761502243559,-104469.020653,0.0003588,3]
[392454248,1761502243569,-195.76146674,0.0003588,2]
[392454249,1761502243577,-820.788388,0.0003588,31]
[392454250,1761502243586,-820.788388,0.0003588,31]
[392454251,1761502243596,-820.788388,0.0003588,31]
[392454252,1761502243605,-820.788388,0.0003588,31]
[392454253,1761502243614,-823.311283,0.0003588,31]
[392454254,1761502243625,-823.311283,0.0003588,31]
[392454255,1761502243634,-823.311283,0.0003588,31]
[392454256,1761502243642,-559.051871,0.0003588,31]
[392454257,1761502243651,-823.311283,0.0003588,31]
[392454258,1761502243660,-559.051871,0.0003588,31]
[392454259,1761502243670,-559.051871,0.0003588,31]
[392454260,1761502243680,-559.051871,0.0003588,31]
[392454261,1761502243690,-151.0,0.0003588,31]
[392454262,1761502243699,-151.0,0.0003588,31]
[392454263,1761502243708,-151.0,0.0003588,31]
[392454265,1761502243718,-151.0,0.0003588,31]
[392454266,1761502243821,-151.0,0.0003588,31]
[392454268,1761502243831,-151.0,0.0003588,30]
[392454270,1761502243840,-151.0,0.0003588,30]
[392454272,1761502243849,-586.33,0.00035889,9]
[392454274,1761502243858,-500.0,0.00035889,7]
[392454275,1761502243867,-500.0,0.00035889,9]
[392454276,1761502243876,-2065.40715663,0.00035889,120]
[392454277,1761502243885,-193033.4626,0.0003589,2]
[392454278,1761502243894,-151.0,0.0003589,31]
[392454279,1761502243904,-151.0,0.0003589,31]
[392454280,1761502243913,-151.0,0.0003589,31]
[392454281,1761502243922,-151.0,0.0003589,31]
[392454282,1761502243931,-151.0,0.0003589,31]
[392454283,1761502243940,-151.0,0.0003589,31]
[392454284,1761502243950,-156.867739,0.0003589,31]
[392454285,1761502243959,-151.0,0.0003589,31]
[392454286,1761502243968,-151.0,0.0003589,31]
[392454287,1761502243977,-253.237959,0.0003589,31]
[392454288,1761502243991,-151.0,0.0003589,31]
[392454289,1761502244000,-151.0,0.0003589,31]
[392454290,1761502244010,-151.0,0.0003589,15]
[392454291,1761502244025,-224.33407,0.0003589,31]
[392454292,1761502244034,-189.996922,0.0003589,31]
[392454293,1761502244043,-151.0,0.0003589,31]
[392454294,1761502244052,-151.0,0.0003589,31]
[392454295,1761502244062,-151.0,0.0003589,31]
[392454296,1761502244071,-296.109214,0.0003589,31]
[392454297,1761502244080,-151.0,0.0003589,31]
[392454298,1761502244090,-151.0,0.0003589,31]
[392454299,1761502244099,-151.0,0.0003589,31]
[392454300,1761502244108,-151.0,0.0003589,31]
[392454301,1761502244117,-151.0,0.0003589,31]
[392454302,1761502244126,-151.0,0.0003589,31]
[392454303,1761502244136,-151.0,0.0003589,31]
[392454304,1761502244145,-151.0,0.0003589,31]
[392454305,1761502244154,-151.0,0.0003589,31]
[392454306,1761502244163,-151.0,0.0003589,31]
[392454307,1761502244172,-272.936448,0.0003589,31]
[392454308,1761502244181,-151.0,0.0003589,31]
[392454309,1761502244190,-151.0,0.0003589,31]
[392454310,1761502244199,-151.0,0.0003589,31]
[392454311,1761502244208,-151.0,0.0003589,31]
[392454312,1761502244217,-820.788388,0.0003589,31]
[392454313,1761502244226,-2426.51987456,0.0003589,3]
[392454314,1761502244393,-151.0,0.000358,31]
[392454315,1761502244405,-151.0,0.0003587,31]
[392454316,1761502244414,-151.0,0.00035879,31]
[392454317,1761502244424,-8020.38219074,0.0003589,3]
[392454318,1761502244433,-820.788388,0.0003589,31]
[392454319,1761502244442,-820.788388,0.0003589,31]
[392454320,1761502244453,-820.788388,0.0003589,31]
[392454321,1761502244465,-823.311283,0.0003589,31]
[392454322,1761502244475,-427.36126102,0.0003589,31]
[392454327,1761502249772,-395.95002198,0.0003589,31]
[392454328,1761502249781,-823.311283,0.0003589,31]
[392454329,1761502249791,-559.051871,0.0003589,31]
[392454330,1761502249800,-823.311283,0.0003589,31]
[392454331,1761502249810,-559.051871,0.0003589,31]
[392454332,1761502249820,-559.051871,0.0003589,31]
[392454333,1761502249830,-559.051871,0.0003589,31]
[392454334,1761502249841,-151.0,0.0003589,31]
[392454335,1761502249850,-151.0,0.0003589,31]
[392454336,1761502249861,-183.5,0.0003589,31]
[392454337,1761502249870,-151.0,0.0003589,31]
[392454338,1761502249879,-151.0,0.0003589,30]
[392454339,1761502249890,-151.0,0.0003589,30]
[392454340,1761502249900,-246.845721,0.0003589,31]
[392454341,1761502249909,-151.0,0.0003589,31]
[392454342,1761502249919,-151.0,0.0003589,31]
[392454343,1761502249928,-151.0,0.0003589,31]
[392454344,1761502249937,-151.0,0.0003589,31]
[392454345,1761502249949,-151.0,0.0003589,31]
[392454346,1761502249959,-151.0,0.0003589,31]
[392454347,1761502249969,-151.0,0.0003589,31]
[392454348,1761502249979,-151.0,0.0003589,31]
[392454349,1761502249989,-151.0,0.0003589,31]
[392454350,1761502250003,-500.0,0.0003589,30]
[392454351,1761502250012,-1425.0,0.00035894,2]
[392454352,1761502250022,-650.71139593,0.000359,2]
[392454353,1761502250031,-332.52624786,0.000359,2]
[392454354,1761502250040,-200.39686397,0.000359,2]
[392454355,1761502250050,-300.0,0.000359,23]
[392454356,1761502250060,-154.26,0.000359,23]
[392454357,1761502250069,-1012.0,0.000359,7]
[392454358,1761502250079,-389.44460799,0.000359,2]
[392454359,1761502250089,-158.1,0.000359,2]
[392454360,1761502250099,-500.0,0.000359,30]
[392454361,1761502250108,-500.0,0.000359,30]
[392454362,1761502250117,-500.0,0.000359,30]
[392454363,1761502250126,-500.0,0.000359,30]
[392454364,1761502250135,-500.0,0.000359,30]
[392454365,1761502250144,-500.0,0.000359,30]
[392454366,1761502250153,-500.0,0.000359,30]
[392454367,1761502250163,-500.0,0.000359,30]
[392454368,1761502250172,-500.0,0.000359,30]
[392454369,1761502250181,-500.0,0.000359,30]
[392454370,1761502250190,-500.0,0.000359,30]
[392454371,1761502250198,-500.0,0.000359,30]
[392454372,1761502250208,-500.0,0.000359,30]
[392454373,1761502250217,-500.0,0.000359,30]
[392454374,1761502250226,-500.0,0.000359,30]
[392454375,1761502250235,-500.0,0.000359,30]
[392454376,1761502250244,-400.0,0.000359,13]
[392454377,1761502250253,-570.66619608,0.000359,2]
[392454378,1761502250263,-256.37660803,0.000359,2]
[392454379,1761502250271,-1935.77329408,0.000359,2]
[392454380,1761502250280,-169.11988859,0.000359,2]
[392454381,1761502250289,-2086.03033091,0.000359,2]
[392454382,1761502250298,-1187.5744697,0.00035904,8]
[392454383,1761502250307,-586.33,0.00035905,9]
[392454384,1761502250316,-10446.9020653,0.00035919,3]
[392454385,1761502250325,-10446.9020653,0.00035921,3]
[392454386,1761502250334,-10446.9020653,0.00035929,3]
[392454387,1761502250343,-10446.9020653,0.00035931,3]
[392454388,1761502250353,-10446.9020653,0.00035939,3]
[392454389,1761502250362,-10446.9020653,0.0003594,3]
[392454390,1761502250375,-23180.100128,0.00035941,2]
[392454391,1761502250385,-151.0,0.00035941,31]
[392454392,1761502250393,-151.0,0.00035941,31]
[392454393,1761502250402,-151.0,0.00035941,31]
[392454394,1761502250411,-151.0,0.00035941,31]
[392454395,1761502250420,-151.0,0.00035941,31]
[392454396,1761502250429,-151.0,0.00035941,31]
[392454397,1761502250438,-151.0,0.00035941,31]
[392454398,1761502250447,-151.0,0.00035941,31]
[392454399,1761502250463,-193.724023,0.00035941,31]
[392454400,1761502250472,-546.63389525,0.00035948,2]
[392454401,1761502250481,-158.69352,0.00035948,2]
[392454402,1761502250490,-1000.0,0.00035949,6]
[392454403,1761502250501,-1000.0,0.00035949,7]
[392454404,1761502250510,-1000.0,0.00035949,13]
[392454405,1761502250519,-1000.0,0.00035949,20]
[392454406,1761502250530,-200.0,0.00035949,3]
[392454407,1761502250538,-207.22276491,0.00035949,3]
[392454408,1761502250547,-200.0,0.00035949,3]
[392454409,1761502250556,-400.0,0.00035949,3]
[392454410,1761502250566,-414.8,0.00035949,3]
[392454411,1761502250575,-430.1476,0.00035949,3]
[392454412,1761502250584,-153.41161014,0.00035949,3]
[392454413,1761502250593,-250.0,0.00035949,3]
[392454414,1761502250602,-220.0,0.00035949,3]
[392454415,1761502250611,-250.0,0.00035949,3]
[392454416,1761502250620,-220.0,0.00035949,3]
[392454417,1761502250629,-250.0,0.00035949,3]
[392454418,1761502250638,-500.0,0.00035949,3]
[392454419,1761502250647,-250.0,0.00035949,3]
[392454420,1761502250656,-574.12855637,0.00035949,3]
[392454421,1761502250665,-500.0,0.00035949,3]
[392454422,1761502250674,-353.25738842,0.00035949,3]
[392454423,1761502250683,-200.0,0.00035949,3]
[392454424,1761502250693,-595.37131296,0.00035949,3]
[392454425,1761502250701,-500.0,0.00035949,3]
[392454426,1761502250790,-200.0,0.00035949,3]
[392454427,1761502250800,-617.40005154,0.00035949,3]
[392454428,1761502250809,-416.78515512,0.00035949,3]
[392454429,1761502250818,-640.24385345,0.00035949,3]
[392454430,1761502250828,-277.35679052,0.00035949,3]
[392454431,1761502250839,-663.93287602,0.00035949,3]
[392454432,1761502250849,-688.49839244,0.00035949,3]
[392454433,1761502250859,-250.0,0.00035949,3]
[392454434,1761502250868,-713.97283296,0.00035949,3]
[392454435,1761502250877,-250.0,0.00035949,3]
[392454436,1761502250886,-604.09475324,0.00035949,3]
[392454437,1761502250895,-250.0,0.00035949,3]
[392454438,1761502250904,-250.0,0.00035949,3]
[392454439,1761502250913,-151.0,0.00035949,3]
[392454440,1761502250923,-200.0,0.00035949,3]
[392454441,1761502250933,-250.0,0.00035949,3]
[392454442,1761502250942,-151.0,0.00035949,3]
[392454443,1761502250951,-200.0,0.00035949,3]
[392454444,1761502250960,-250.0,0.00035949,3]
[392454445,1761502250969,-151.0,0.00035949,3]
[392454446,1761502250979,-250.0,0.00035949,3]
[392454447,1761502250988,-151.0,0.00035949,3]
[392454448,1761502250997,-500.0,0.00035949,3]
[392454449,1761502251006,-250.0,0.00035949,3]
[392454450,1761502251015,-151.0,0.00035949,3]
[392454451,1761502251025,-500.0,0.00035949,3]
[392454452,1761502251034,-250.0,0.00035949,3]
[392454453,1761502251043,-151.0,0.00035949,3]
[392454454,1761502251053,-500.0,0.00035949,3]
[392454455,1761502251062,-250.0,0.00035949,3]
[392454456,1761502251071,-151.0,0.00035949,3]
[392454457,1761502251080,-500.0,0.00035949,3]
[392454458,1761502251090,-250.0,0.00035949,3]
[392454459,1761502251099,-151.0,0.00035949,3]
[392454460,1761502251109,-162.28864052,0.00035949,3]
[392454461,1761502251118,-151.0,0.00035949,3]
[392454462,1761502251127,-151.0,0.00035949,3]
[392454463,1761502251136,-151.0,0.00035949,3]
[392454464,1761502251145,-682.89332903,0.0003595,31]
[392454465,1761502251156,-1000.0,0.0003595,31]
[392454466,1761502251165,-720.68455957,0.0003595,7]
[392454467,1761502251174,-152.0,0.0003595,7]
[392454468,1761502251183,-152.0,0.0003595,7]
[392454469,1761502251192,-152.0,0.0003595,7]
[392454470,1761502251201,-154.43794593,0.0003595,7]
[392454471,1761502251211,-152.0,0.0003595,7]
[392454472,1761502251220,-586.33,0.00035958,9]
[392454473,1761502251229,-10446.9020653,0.0003596,3]
[392454474,1761502251238,-31340.706196,0.0003596,3]
[392454475,1761502251247,-10446.9020653,0.00035969,3]
[392454476,1761502251256,-308.30534958,0.00035969,10]
[392454477,1761502251265,-20893.8041307,0.00035969,3]
[392454478,1761502251274,-151.0,0.0003597,31]
[392454479,1761502251284,-151.0,0.0003597,31]
[392454480,1761502251293,-151.0,0.0003597,31]
[392454481,1761502251303,-151.0,0.0003597,31]
[392454482,1761502251312,-151.0,0.0003597,31]
[392454483,1761502251321,-151.0,0.0003597,31]
[392454484,1761502251331,-151.0,0.0003597,31]
[392454485,1761502251341,-151.0,0.0003597,31]
[392454486,1761502251350,-151.0,0.0003597,31]
[392454487,1761502251358,-151.0,0.0003597,31]
[392454488,1761502251367,-222.369901,0.0003597,31]
[392454489,1761502251377,-162.128707,0.0003597,31]
[392454490,1761502251387,-189.464585,0.0003597,31]
[392454491,1761502251397,-820.788388,0.0003597,31]
[392454492,1761502251406,-820.788388,0.0003597,31]
[392454493,1761502251417,-10446.9020653,0.0003597,3]
[392454494,1761502251427,-820.788388,0.0003597,31]
[392454495,1761502251437,-820.788388,0.0003597,31]
[392454496,1761502251446,-823.311283,0.0003597,31]
[392454497,1761502251457,-823.311283,0.0003597,31]
[392454498,1761502251467,-823.311283,0.0003597,31]
[392454499,1761502251477,-559.051871,0.0003597,31]
[392454500,1761502251488,-823.311283,0.0003597,31]
[392454501,1761502251499,-559.051871,0.0003597,31]
[392454502,1761502251511,-559.051871,0.0003597,31]
[392454503,1761502251520,-559.051871,0.0003597,31]
[392454504,1761502251529,-151.0,0.0003597,31]
[392454505,1761502251539,-151.0,0.0003597,31]
[392454506,1761502251548,-151.0,0.0003597,31]
[392454507,1761502251557,-151.0,0.0003597,30]
[392454508,1761502251566,-279.8911,0.0003597,30]
[392454509,1761502251575,-458.0,0.0003597,120]
[392454510,1761502251584,-20893.8041307,0.0003597,3]
[392454511,1761502251593,-582.0,0.00035973,120]
[392454512,1761502251601,-461.21877597,0.00035973,2]
[392454513,1761502251610,-160.32573851,0.00035973,2]
[392454514,1761502251619,-157.67007675,0.00035976,7]
[392454515,1761502251629,-154.091019,0.0003598,31]
[392454516,1761502251638,-151.0,0.0003598,31]
[392454517,1761502251647,-151.0,0.0003598,31]
[392454518,1761502251656,-151.0,0.0003598,31]
[392454519,1761502251666,-151.0,0.0003598,31]
[392454520,1761502251674,-151.0,0.0003598,31]
[392454521,1761502251683,-151.0,0.0003598,31]
[392454522,1761502251692,-151.0,0.0003598,31]
[392454523,1761502251701,-500.0,0.0003598,7]
[392454524,1761502251710,-151.0,0.0003598,31]
[392454525,1761502251719,-151.0,0.0003598,31]
[392454526,1761502251728,-186.982162,0.0003598,31]
[392454527,1761502251738,-151.0,0.0003598,31]
[392454528,1761502251747,-151.0,0.0003598,31]
[392454529,1761502251756,-151.0,0.0003598,31]
[392454530,1761502251765,-151.0,0.0003598,31]
[392454531,1761502251775,-151.0,0.0003598,31]
[392454532,1761502251784,-151.0,0.0003598,31]
[392454533,1761502251793,-151.0,0.0003598,31]
[392454534,1761502251802,-151.0,0.0003598,31]
[392454535,1761502251811,-820.788388,0.0003598,31]
[392454536,1761502251821,-820.788388,0.0003598,31]
[392454537,1761502251834,-820.788388,0.0003598,31]
[392454538,1761502251844,-820.788397,0.0003598,31]
[392454539,1761502251854,-823.311283,0.0003598,31]
[392454540,1761502251863,-823.311283,0.0003598,31]
[392454541,1761502251872,-823.311283,0.0003598,31]
[392454542,1761502251882,-559.051871,0.0003598,31]
[392454543,1761502251891,-823.311288,0.0003598,31]
[392454544,1761502251971,-559.051871,0.0003598,31]
[392454545,1761502251981,-559.051871,0.0003598,31]
[392454546,1761502251990,-559.051872,0.0003598,31]
[392454547,1761502251999,-151.0,0.0003598,31]
[392454548,1761502252008,-151.0,0.0003598,31]
[392454549,1761502252017,-241.134348,0.0003598,31]
[392454550,1761502252026,-151.0,0.0003598,30]
[392454551,1761502252035,-458.0,0.0003598,120]
[392454552,1761502252045,-232.32231663,0.0003598,9]
[392454553,1761502252054,-1236.0,0.00035984,7]
[392454554,1761502252063,-1236.0,0.00035984,7]
[392454555,1761502252072,-1236.0,0.00035984,7]
[392454556,1761502252081,-1236.0,0.00035984,7]
[392454557,1761502252091,-1236.0,0.00035984,7]
[392454558,1761502252100,-1236.0,0.00035984,7]
[392454559,1761502252110,-1236.0,0.00035984,7]
[392454560,1761502252121,-1236.0,0.00035984,7]
[392454561,1761502252131,-1236.0,0.00035984,7]
[392454562,1761502252139,-1236.0,0.00035984,7]
[392454563,1761502252149,-1236.0,0.00035984,7]
[392454564,1761502252159,-1236.0,0.00035984,7]
[392454565,1761502252169,-1236.0,0.00035984,7]
[392454566,1761502252179,-1236.0,0.00035984,7]
[392454567,1761502252189,-1236.0,0.00035984,7]
[392454568,1761502252198,-1000.0,0.00035984,7]
[392454569,1761502252209,-500.0,0.00035985,2]
[392454570,1761502252220,-1236.0,0.00035987,7]
[392454571,1761502252230,-1236.0,0.00035987,7]
[392454572,1761502252239,-1236.0,0.00035987,7]
[392454573,1761502252248,-1236.0,0.00035987,7]
[392454574,1761502252258,-1236.0,0.00035987,7]
[392454575,1761502252268,-1236.0,0.00035987,7]
[392454576,1761502252277,-1236.0,0.00035987,7]
[392454577,1761502252290,-1236.0,0.00035987,7]
[392454578,1761502252299,-1236.0,0.00035987,7]
[392454579,1761502252310,-1236.0,0.00035987,7]
[392454580,1761502252319,-1236.0,0.00035987,7]
[392454581,1761502252328,-1236.0,0.00035987,7]
[392454582,1761502252338,-1236.0,0.00035987,7]
[392454583,1761502252347,-1236.0,0.00035987,7]
[392454584,1761502252356,-1176.0,0.00035987,7]
[392454585,1761502252366,-586.33,0.00035988,9]
[392454586,1761502252376,-1000.0,0.00035989,2]
[392454587,1761502252386,-1000.0,0.00035989,2]
[392454588,1761502252395,-1000.0,0.00035989,2]
[392454589,1761502252405,-1000.0,0.00035989,2]
[392454590,1761502252414,-1000.0,0.00035989,2]
[392454591,1761502252424,-1000.0,0.00035989,2]
[392454592,1761502252434,-1000.0,0.00035989,2]
[392454593,1761502252443,-1000.0,0.00035989,2]
[392454594,1761502252454,-1000.0,0.00035989,2]
[392454595,1761502252466,-836.43532844,0.00035989,2]
[392454596,1761502252476,-500.0,0.00035989,7]
[392454597,1761502252487,-500.0,0.00035989,7]
[392454598,1761502252498,-1000.0,0.00035989,2]
[392454599,1761502252518,-355.0,0.0003599,7]
[392454600,1761502252534,-330.0,0.0003599,120]
[392454601,1761502252553,-333.14728307,0.0003599,50]
[392454602,1761502252571,-153.209653,0.0003599,31]
[392454603,1761502252586,-151.0,0.0003599,31]
[392454604,1761502252605,-264.968687,0.0003599,31]
[392454605,1761502252623,-151.0,0.0003599,31]
[392454606,1761502252639,-151.0,0.0003599,31]
[392454607,1761502252658,-151.0,0.0003599,31]
[392454608,1761502252677,-151.0,0.0003599,31]
[392454609,1761502252696,-151.0,0.0003599,31]
[392454610,1761502252710,-217.621884,0.0003599,31]
[392454611,1761502252728,-151.0,0.0003599,31]
[392454612,1761502252741,-219.339203,0.0003599,31]
[392454613,1761502252756,-151.0,0.0003599,31]
[392454614,1761502252771,-151.0,0.0003599,31]
[392454615,1761502252785,-151.0,0.0003599,31]
[392454616,1761502252799,-151.000001,0.0003599,31]
[392454617,1761502252813,-151.0,0.0003599,31]
[392454618,1761502252828,-151.0,0.0003599,31]
[392454619,1761502252843,-458.0,0.0003599,120]
[392454620,1761502252857,-195.76146674,0.0003599,2]
[392454621,1761502252870,-195.76146674,0.0003599,2]
[392454622,1761502252884,-92940.69745786,0.00035999,31]
[392454623,1761502252898,-200.0,0.00035999,30]
[392454624,1761502252913,-1303.78191918,0.00035999,30]
[392454625,1761502252928,-1004.3755,0.00035999,2]
[392454626,1761502252941,-586.33,0.00035999,9]
[392454627,1761502252956,-586.33,0.00035999,9]
[392454628,1761502252972,-586.33,0.00035999,9]
[392454629,1761502252988,-586.33,0.00035999,9]
[392454630,1761502253003,-586.33,0.00035999,9]
[392454631,1761502253017,-586.33,0.00035999,9]
[392454632,1761502253033,-586.33,0.00035999,9]
[392454633,1761502253047,-586.33,0.00035999,9]
[392454634,1761502253062,-586.33,0.00035999,9]
[392454635,1761502253077,-586.33,0.00035999,9]
[392454636,1761502253091,-586.33,0.00035999,9]
[392454637,1761502253106,-586.33,0.00035999,9]
[392454638,1761502253121,-586.33,0.00035999,9]
[392454639,1761502253134,-586.33,0.00035999,9]
[392454640,1761502253149,-586.33,0.00035999,9]
[392454641,1761502253164,-586.33,0.00035999,9]
[392454642,1761502253179,-586.33,0.00035999,9]
[392454643,1761502253193,-586.33,0.00035999,9]
[392454644,1761502253209,-586.51,0.00035999,9]
[392454645,1761502253222,-500.0,0.00035999,7]
[392454646,1761502253237,-500.0,0.00035999,7]
[392454647,1761502253252,-500.0,0.00035999,7]
[392454648,1761502253267,-500.0,0.00035999,7]
[392454649,1761502253282,-500.0,0.00035999,7]
[392454650,1761502253291,-500.0,0.00035999,7]
[392454651,1761502253300,-500.0,0.00035999,7]
[392454652,1761502253310,-500.0,0.00035999,7]
[392454653,1761502253449,-500.0,0.00035999,7]
[392454654,1761502253469,-500.0,0.00035999,7]
[392454655,1761502253479,-500.0,0.00035999,7]
[392454656,1761502253488,-500.0,0.00035999,7]
[392454657,1761502253498,-500.0,0.00035999,7]
[392454658,1761502253507,-500.0,0.00035999,7]
[392454659,1761502253516,-308.78,0.00035999,7]
[392454660,1761502253526,-153.98124979,0.00035999,20]
[392454661,1761502253536,-5935729.14060408,0.00036,2]
[392454662,1761502253545,-158414.99032379,0.00036,2]
[392454663,1761502253554,-150.91967737,0.00036,30]
[392454664,1761502253563,-933.46,0.00036,14]
[392454665,1761502253573,-1507.79906189,0.00036,2]
[392454666,1761502253582,-151.0,0.00036,31]
[392454667,1761502253591,-151.0,0.00036,31]
[392454668,1761502253600,-151.0,0.00036,31]
[392454669,1761502253609,-151.649511,0.00036,31]
[392454670,1761502253618,-153.351423,0.00036,31]
[392454671,1761502253627,-151.0,0.00036,31]
[392454672,1761502253637,-153.303245,0.00036,31]
[392454673,1761502253646,-151.0,0.00036,31]
[392454674,1761502253655,-151.0,0.00036,31]
[392454675,1761502253664,-151.0,0.00036,31]
[392454676,1761502253675,-151.0,0.00036,31]
[392454677,1761502253685,-151.0,0.00036,31]
[392454678,1761502253694,-151.0,0.00036,31]
[392454679,1761502253704,-151.0,0.00036,31]
[392454680,1761502253714,-151.0,0.00036,31]
[392454681,1761502253723,-215.894986,0.00036,31]
[392454682,1761502253732,-151.0,0.00036,31]
[392454683,1761502253742,-151.0,0.00036,31]
[392454684,1761502253751,-151.0,0.00036,31]
[392454685,1761502253760,-183.3,0.00036,33]
[392454686,1761502253769,-5064.3,0.00036,14]
[392454687,1761502253778,-300.0,0.00036008,3]
[392454688,1761502253788,-414.6,0.00036027,2]
[392454689,1761502253797,-414.6,0.00036027,2]
[392454690,1761502253807,-414.6,0.00036027,2]
[392454691,1761502253816,-728.33,0.00036027,2]
[392454692,1761502253825,-414.6,0.00036027,2]
[392454693,1761502253834,-219.44,0.00036027,2]
[392454694,1761502253843,-513.0,0.00036036,2]
[392454695,1761502253853,-650.71139587,0.00036051,2]
[392454696,1761502253863,-1320.22,0.00036058,14]
[392454697,1761502253873,-166.0,0.00036085,120]
[392454698,1761502253883,-548.0,0.00036091,2]
[392454699,1761502253893,-168.0,0.00036095,2]
[392454700,1761502253902,-256.37660803,0.00036095,2]
[392454701,1761502253911,-1425.0,0.00036105,2]
[392454702,1761502253920,-1425.0,0.00036116,2]
[392454703,1761502253930,-150.11164651,0.00036124,30]
[392454704,1761502253939,-168.0,0.00036128,7]
[392454705,1761502253948,-276.0,0.00036142,7]
[392454706,1761502253958,-177.37,0.00036149,2]
[392454707,1761502253967,-547.92,0.00036151,2]
[392454708,1761502253977,-547.92,0.00036151,2]
[392454709,1761502253986,-547.92,0.00036151,2]
[392454710,1761502253996,-485.66,0.00036151,2]
[392454711,1761502254006,-548.0,0.00036162,7]
[392454712,1761502254015,-500.0,0.00036164,30]
[392454713,1761502254024,-150.91967737,0.00036164,30]
[392454714,1761502254034,-816.0,0.00036177,7]
[392454715,1761502254045,-1000.0,0.000362,7]
[392454716,1761502254055,-650.71139587,0.00036201,2]
[392454717,1761502254064,-1425.0,0.00036209,2]
[392454718,1761502254074,-168.0,0.00036232,120]
[392454719,1761502254084,-256.37660803,0.0003629,2]
[392454720,1761502254093,-1425.0,0.00036297,2]
[392454721,1761502254102,-475.59,0.00036312,2]
[392454722,1761502254111,-1425.0,0.00036328,2]